[Event "Mongolian Championship Open 2022"]
[Site "Chingis Khentii"]
[Date "2022.05.19"]
[Round "7.3"]
[White "Amilal Munkhdalai"]
[Black "Boldoo, Erdenepurev"]
[Result "1/2-1/2"]
[ECO "B40"]
[WhiteElo "2033"]
[BlackElo "2371"]
[Annotator "TA"]
[PlyCount "120"]
[EventDate "2022.05.12"]
[EventType "tourn"]
[EventCountry "MGL"]
[SourceTitle "playchess.com"]
[Source "ChessBase"]
[SourceQuality "1"]
[TimeControl "40/5400+30:1800+30"]

{[%evp 11,120,16,20,22,27,9,50,-47,0,0,68,64,61,50,96,31,18,0,0,-42,-47,-43,-48,-53,-47,-39,-41,-53,-47,-53,-43,-38,-38,-36,32,-42,0,0,0,0,0,0,0,-2,0,-40,-49,-99,-97,-96,-100,-204,-108,-382,-385,-350,-372,-374,-366,-412,-130,-122,-116,-102,-100,-193,-127,-1041,-103,-104,-84,-99,-81,-80,-78,-78,-45,-82,-25,-28,-39,-121,-121,-121,-121,-234,-224,-217,-82,-2066,-2062,-2024,-1990,-1997,-1891,-1931,-1916,-1578,-1379,-1902,-1902,-1902,-1902,-1902,0,0,0,0,0,8,8]} 1. e4 {[%emt 0:00:02][%cal Be2e4,Be4e5,Be5d6][%mdl 32]} c5 {[%emt 0:00:05]} 2. Nf3 {[%emt 0:00:03]} e6 {[%emt 0:00:05]} 3. b3 {[%emt 0:00:03]} Be7 {[%emt 0:04:57]} 4. Bb2 {[%emt 0:01:10]} Nf6 {[%emt 0:00:34][%cal Bg8f6,Bf6d5,Bd5b4][%mdl 32]} 5. e5 {[%emt 0:00:08]} Nd5 {[%emt 0:00:19]} 6. c4 {[%emt 0:02:26]} Nb4 {[%emt 0:02:09]} 7. a3 {[%emt 0:03:56] B40: Sicilian: 2...e6, Unusual lines.} N4c6 {[%emt 0:00:06]} 8. Nc3 {[%emt 0:03:08][%cal Ob3b4]} f5 {[%emt 0:05:29] [#]} 9. Rg1 $146 {[%emt 0:14:47]} (9. b4 $14) ({Predecessor:} 9. g3 a6 10. Bg2 Qc7 11. O-O O-O 12. Re1 Nd4 13. Nxd4 cxd4 14. Ne2 Qxe5 15. Nxd4 {½-½ (45) Stankovic,M (2401)-Doeres,H (2207) Germany 2016}) 9... d6 {[%emt 0:07:50]} (9... O-O $1 $15) 10. exd6 $1 $11 {[%emt 0:17:13]} Bf6 {[%emt 0:00:43]} (10... Bxd6 $11 11. d4 cxd4 12. Nxd4 O-O) 11. g4 $1 $14 {[%emt 0:15:00]} fxg4 {[%emt 0:01:25]} 12. Rxg4 {[%emt 0:00:06]} O-O {[%emt 0:01:10]} (12... Qxd6 $14 13. Ne4 Qe7 14. Bxf6 (14. Nxf6+ gxf6 15. Rg3 e5 $14) 14... gxf6) 13. Qc2 {[%emt 0:07:33] White is more active.} (13. Bd3 $16) 13... e5 {[%emt 0:08:52]} 14. Rg3 {[%emt 0:02:11]} Nd4 {[%emt 0:00:08]} 15. Nxd4 {[%emt 0:09:07]} exd4 {[%emt 0:00:02]} 16. Ne4 {[%emt 0:00:07]} Bh4 {[%emt 0:00:38][%mdl 1024] Black has compensation.} 17. Rg1 {[%emt 0:04:59]} Bf5 {[%emt 0:02:08][%cal Oh4f2]} 18. O-O-O {[%emt 0:01:37]} Nd7 {[%emt 0:01:39]} 19. f4 {[%emt 0:02:54]} Nf6 {[%emt 0:03:12]} 20. d3 {[%emt 0:03:42]} b6 {[%emt 0:04:01]} 21. Bg2 $1 {[%emt 0:02:38]} Ng4 {[%emt 0:00:34]} 22. Qe2 {[%emt 0:05:16][%cal Oe4c5] And now Nxc5! would win.} Ne3 {[%emt 0:01:20] [#]} ({Black should play} 22... Qd7 $15) 23. Rd2 {[%emt 0:00:08]} (23. Nxc5 $1 $14 Nxd1 24. Bxd4) 23... Nxg2 {[%emt 0:00:56]} 24. Qxg2 {[%emt 0:00:13][%csl Gg1][%cal Rg2g7]} Qd7 {[%emt 0:01:18]} 25. b4 {[%emt 0:01:32]} g6 $1 {[%emt 0:15:48]} (25... Bxe4 26. dxe4 Rxf4 27. e5 $16) 26. bxc5 {[%emt 0:00:35]} bxc5 {[%emt 0:00:01][%mdl 64] Remove Defender} 27. Nxc5 {[%emt 0:00:39]} Qxd6 {[%emt 0:00:02]} 28. Nb3 {[%emt 0:01:14]} Bf6 {[%emt 0:04:07]} 29. Kb1 {[%emt 0:01:45]} ({White should try} 29. Qd5+ $1 $15 Qxd5 30. cxd5) 29... Rab8 $17 {[%emt 0:00:30]} 30. Ka2 {[%emt 0:00:07]} (30. c5 $2 Qe7 31. Nxd4 (31. Qd5+ $2 Be6 $19) 31... Rxb2+ 32. Rxb2 Bxd3+ 33. Nc2 Qxc5 $19) 30... Rfd8 {[%emt 0:01:10][%cal Bf8d8,Bd8d5,Bd5b5][%mdl 32]} 31. h4 {[%emt 0:01:00]} (31. Nc1 $17 {was worth a try.}) 31... Bxh4 {[%emt 0:00:55]} (31... Qb6 $19 32. Nc1 Bxh4) 32. Qd5+ $2 {[%emt 0:00:38][%mdl 8192]} (32. Na5 $17) 32... Qxd5 $19 {[%emt 0:00:14]} 33. cxd5 {[%emt 0:00:04]} Rxd5 {[%emt 0:00:05]} 34. Nc1 {[%emt 0:00:26]} h5 {[%emt 0:00:53]} 35. Rh2 {[%emt 0:00:24]} Bf6 {[%emt 0:01:13]} (35... Rdb5 $19 36. Rc2 Bf6) 36. Rxh5 $17 {[%emt 0:00:05]} Rdb5 {[%emt 0:01:09]} 37. Rh2 {[%emt 0:00:27]} Be7 {[%emt 0:01:01][%cal Oe7a3] Threatens to win with ...Bxa3!} 38. Re2 {[%emt 0:00:25] [#]} ({Wrong is} 38. Bxd4 $2 Be6+ 39. Nb3 Rxb3 $19) (38. Re1 $17 {might work better.} Bf6 39. Ka1) 38... Kf7 {[%emt 0:00:40]} (38... Be6+ $1 $19 {[%mdl 512]} 39. Ka1 Bxa3 $1 {[%mdl 512]} 40. Rxg6+ Kf7) 39. Rge1 $2 {[%emt 0:01:31][%mdl 8192] [#]} (39. Bxd4 $17 Be6+ 40. Rxe6 Kxe6 41. Rxg6+ Kf5 42. Rh6) 39... R8b7 $2 {[%emt 0:00:57]} (39... Be6+ $1 $19 {[%mdl 512]} 40. Kb1 Bxa3 41. Rxe6 Rxb2+ 42. Ka1 Rb1+ 43. Ka2 Bxc1 44. Re7+ Kf8 45. Rxc1 R8b2+ 46. Ka3 Kxe7 47. Rc7+ Ke6) 40. Bxd4 {[%emt 0:00:00] [#]} Bxa3 $1 {[%emt 0:00:00][%mdl 512]} 41. Re5 {[%emt 0:01:47]} Bd6 {[%emt 0:05:57][%cal Of5e6] This bishop pair is nice.} 42. Rxb5 {[%emt 0:01:08]} Rxb5 {[%emt 0:00:01]} 43. Be5 {[%emt 0:01:03]} Bxe5 {[%emt 0:00:06]} 44. fxe5 {[%emt 0:10:46][%mdl 4096] Endgame KRB-KRN} g5 {[%emt 0:00:05]} ({Better is} 44... Be6+ $17 45. Ka1 g5) 45. d4 $1 $11 {[%emt 0:01:06]} Be6+ {[%emt 0:00:48]} 46. Ka3 {[%emt 0:01:45]} (46. Ka1 $1 $15) 46... Rb1 $17 {[%emt 0:00:58]} 47. Rf1+ {[%emt 0:04:22]} Ke7 {[%emt 0:00:01]} 48. Rg1 {[%emt 0:06:58]} (48. Rh1 $17 {keeps fighting.}) 48... g4 $19 {[%emt 0:01:29]} 49. Ka4 {[%emt 0:02:42] [#]} g3 {[%emt 0:10:22]} (49... Kd7 $1 $19 {and Black stays clearly on top. White must now prevent ...Kc6.} 50. Rh1 g3) 50. Ne2 $2 {[%emt 0:00:06][%mdl 8192]} (50. Ka5 $17) 50... Rxg1 {[%emt 0:00:54]} 51. Nxg1 {[%emt 0:00:04] KB-KN} Bg4 {[%emt 0:02:10]} 52. d5 {[%emt 0:01:16]} Bc8 {[%emt 0:00:53]} 53. Kb5 {[%emt 0:00:27]} Bb7 {[%emt 0:00:14]} 54. Kc5 {[%emt 0:00:56]} g2 {[%emt 0:00:13]} 55. Ne2 {[%emt 0:02:36]} Kd7 {[%emt 0:00:26]} ({Don't blunder} 55... Ba6 $2 56. Ng1 $19) 56. Ng1 {[%emt 0:01:14]} a5 {[%emt 0:00:05] ...a4 is the strong threat.} 57. Nh3 {[%emt 0:00:30]} Ba6 $2 {[%emt 0:01:19]} (57... a4 $19 {( -> ...a3)} 58. e6+ Ke7 59. d6+ Kxe6 60. Nf4+ Kd7 61. Nxg2 a3) 58. e6+ $1 $11 {[%emt 0:00:11] The position is equal.} Ke7 {[%emt 0:00:05] Strongly threatening ...a4.} 59. d6+ {[%emt 0:00:06]} Kxe6 {[%emt 0:00:14]} 60. Nf4+ {[%emt 0:00:04]} Ke5 {[%emt 0:45:45] Weighted Error Value: White=0.60/Black=0.49} 1/2-1/2

[Event "Mongolian Championship Open 2022"]
[Site "Chingis Khentii"]
[Date "2022.05.19"]
[Round "7.4"]
[White "Amartuvshin, Ganzorig"]
[Black "Batchuluun, Tsegmed"]
[Result "1-0"]
[ECO "D41"]
[WhiteElo "2350"]
[BlackElo "2536"]
[Annotator "TA"]
[PlyCount "67"]
[EventDate "2022.05.12"]
[EventType "tourn"]
[EventCountry "MGL"]
[SourceTitle "playchess.com"]
[Source "ChessBase"]
[SourceQuality "1"]
[TimeControl "40/5400+30:1800+30"]

{[%evp 26,67,0,10,10,0,0,0,0,0,-5,-16,0,-10,0,0,132,132,147,145,247,233,239,239,225,151,150,156,156,161,162,161,157,164,148,159,160,152,222,222,197,185,418,405]} 1. d4 {[%emt 0:00:02]} Nf6 {[%emt 0:00:08]} 2. c4 {[%emt 0:00:05]} e6 {[%emt 0:00:06]} 3. Nf3 {[%emt 0:00:06]} d5 {[%emt 0:01:14]} 4. Nc3 {[%emt 0:00:11]} c5 {[%emt 0:00:20]} 5. cxd5 {[%emt 0:00:38]} Nxd5 {[%emt 0:00:06]} 6. e4 {[%emt 0:00:08]} Nxc3 {[%emt 0:00:10]} 7. bxc3 {[%emt 0:00:06]} cxd4 {[%emt 0:00:05]} 8. cxd4 {[%emt 0:00:07]} Bb4+ {[%emt 0:00:03]} 9. Bd2 {[%emt 0:00:09]} Bxd2+ {[%emt 0:00:06]} 10. Qxd2 {[%emt 0:00:05]} O-O {[%emt 0:00:05]} 11. Bc4 {[%emt 0:00:34]} Nd7 {[%emt 0:00:05]} 12. O-O {[%emt 0:00:31]} b6 {[%emt 0:00:06]} 13. Rad1 {[%emt 0:00:17]} Bb7 {[%emt 0:00:06]} 14. Rfe1 {[%emt 0:00:06]} Rc8 {[%emt 0:00:08] D41: Queen's Gambit Declined: Semi-Tarrasch with 5 cxd5.} 15. Bb3 {[%emt 0:00:06]} Re8 {[%emt 0:00:05]} 16. Re3 {[%emt 0:01:39]} Nf6 {[%emt 0:00:49] The position is equal.} 17. d5 {[%emt 0:01:59]} exd5 {[%emt 0:00:20]} 18. e5 {[%emt 0:00:08]} Ne4 {[%emt 0:20:01]} 19. Qe1 {[%emt 0:00:57]} Qc7 {[%emt 0:20:55]} 20. Nd4 {[%emt 0:00:47]} Rxe5 {[%emt 0:18:41]} (20... Qxe5 21. f3 $14) (20... Qc5 $11 {keeps the balance.}) 21. f3 $1 $16 {[%emt 0:02:42]} Rh5 {[%emt 0:00:27]} 22. h4 {[%emt 0:06:48][%mdl 1024] White has strong compensation.} Nd6 {[%emt 0:09:04] [#]} (22... Rd8 $16) 23. g4 $1 $18 {[%emt 0:05:39]} Rh6 {[%emt 0:00:19] [#]} 24. Nf5 $1 {[%emt 0:23:42] [#]} Qc5 $146 {[%emt 0:10:39] And now ...Nxf5 would win.} ({Predecessor:} 24... Rf8 25. Nxh6+ gxh6 26. Bxd5 Bxd5 27. Rxd5 Nc4 28. Re7 Qc6 29. Qe4 b5 30. Rg5+ {1-0 (30) Abdusattorov,N (2634)-Alavi Moghaddam,S (2432) Chess.com INT 2021}) 25. Ne7+ {[%emt 0:02:58]} Kf8 {[%emt 0:00:19]} 26. Nxc8 {[%emt 0:00:09] White is much more active.} Re6 {[%emt 0:08:48] [#]} 27. Nxd6 $1 {[%emt 0:01:33]} Rxe3 {[%emt 0:00:18]} 28. Qf2 {[%emt 0:01:06]} Qxd6 {[%emt 0:08:13]} 29. Qxe3 {[%emt 0:00:09]} Qg3+ {[%emt 0:00:05]} 30. Kf1 {[%emt 0:00:08]} ({Don't blunder} 30. Kh1 $2 d4 31. Qe4 Bxe4 $19) 30... Ba6+ {[%emt 0:00:13] [#]} 31. Rd3 $1 {[%emt 0:00:13]} Qxh4 {[%emt 0:02:50] [#]} (31... h5 $16 {was necessary.}) (31... d4 32. Qe4) 32. Kg2 $1 {[%emt 0:00:30]} Bxd3 {[%emt 0:00:08]} 33. Qxd3 {[%emt 0:00:12]} h5 $2 {[%emt 0:00:27]} (33... g6 34. Qxd5 Qe7) 34. Qxd5 {[%emt 0:00:14] Weighted Error Value: White=0.03 (flawless) /Black=0.40} 1-0

[Event "Mongolian Championship Open 2022"]
[Site "Chingis Khentii"]
[Date "2022.05.19"]
[Round "7.5"]
[White "Munkhgal, Gombosuren"]
[Black "Gundavaa, Bayarsaikhan"]
[Result "1/2-1/2"]
[ECO "E62"]
[WhiteElo "2502"]
[BlackElo "2495"]
[Annotator "TA"]
[PlyCount "65"]
[EventDate "2022.05.12"]
[EventType "tourn"]
[EventCountry "MGL"]
[SourceTitle "playchess.com"]
[Source "ChessBase"]
[SourceQuality "1"]
[TimeControl "40/5400+30:1800+30"]

{[%evp 13,65,20,33,39,28,29,43,30,58,46,46,50,45,49,54,29,38,38,36,37,59,43,55,36,32,34,29,27,27,27,44,23,29,31,35,31,31,38,29,6,18,11,31,8,17,17,17,4,17,17,26,0,17,0]} 1. d4 {[%emt 0:00:02]} g6 {[%emt 0:01:08]} 2. Nf3 {[%emt 0:00:21]} Bg7 {[%emt 0:00:20]} 3. g3 {[%emt 0:00:06]} Nf6 {[%emt 0:01:30]} 4. Bg2 {[%emt 0:00:05]} O-O {[%emt 0:00:51]} 5. O-O {[%emt 0:00:04]} d6 {[%emt 0:05:41]} 6. c4 {[%emt 0:01:49]} c6 {[%emt 0:02:26]} 7. Nc3 {[%emt 0:00:37]} Bf5 {[%emt 0:00:28]} 8. Ng5 {[%emt 0:00:20][%cal Bf3g5,Bg5h3,Bh3f2][%mdl 32] 8.Ne1 is the recent fashion. E62: King's Indian: Fianchetto: 6...c6 and Panno Variation (6...Nc6) without ...a6.} e5 {[%emt 0:02:10]} 9. d5 {[%emt 0:03:35]} h6 {[%emt 0:14:19]} 10. e4 {[%emt 0:00:43] White is slightly better.} Bg4 {[%emt 0:00:29]} 11. f3 {[%emt 0:00:39]} Bd7 {[%emt 0:00:15] [#] White must now prevent ...Qb6+.} 12. Nh3 {[%emt 0:00:07]} cxd5 {[%emt 0:00:36]} 13. cxd5 {[%emt 0:00:31]} b5 {[%emt 0:04:07]} 14. a3 {[%emt 0:03:11]} a5 {[%emt 0:03:21] [#]} 15. Be3 $146 {[%emt 0:03:02]} ({Predecessor:} 15. Nf2 Na6 16. Qe2 Qb6 17. Be3 Qb7 18. Rfc1 b4 19. axb4 axb4 {1-0 (47) Ippolito,D (2369)-Yip,C (2420) Chess.com INT 2020}) 15... Na6 {[%emt 0:00:25][%cal Bb8a6,Ba6c5,Bc5a4][%mdl 32]} 16. Nf2 {[%emt 0:03:51]} Qb8 {[%emt 0:05:26]} 17. Re1 {[%emt 0:02:45]} Nc5 {[%emt 0:05:32]} 18. b4 {[%emt 0:10:54]} axb4 {[%emt 0:04:12]} 19. axb4 {[%emt 0:00:13]} Na4 {[%emt 0:00:13]} 20. Qd2 {[%emt 0:00:57]} Rc8 {[%emt 0:04:26]} 21. Rec1 {[%emt 0:10:16]} Kh7 {[%emt 0:02:04]} 22. Bf1 {[%emt 0:01:25]} Nxc3 {[%emt 0:05:37]} 23. Rxa8 {[%emt 0:00:25]} Qxa8 {[%emt 0:00:11]} 24. Rxc3 {[%emt 0:00:05]} Rxc3 {[%emt 0:00:31]} 25. Qxc3 {[%emt 0:00:05]} Ne8 {[%emt 0:00:11]} 26. Bh3 {[%emt 0:05:31]} Bxh3 {[%emt 0:08:13]} 27. Nxh3 {[%emt 0:00:11]} f5 {[%emt 0:00:15]} 28. Nf2 {[%emt 0:07:48]} fxe4 {[%emt 0:00:44]} 29. fxe4 {[%emt 0:01:29]} Nf6 {[%emt 0:00:20]} 30. Qb2 {[%emt 0:13:12]} Qc8 {[%emt 0:05:01]} 31. Qc1 {[%emt 0:00:31]} Qa8 {[%emt 0:00:06]} 32. Qb2 {[%emt 0:00:36]} Qc8 {[%emt 0:01:56]} 33. Qc1 {[%emt 0:00:07] Weighted Error Value: White=0.09 (flawless) /Black=0.06 (flawless)} 1/2-1/2

[Event "Mongolian Championship Open 2022"]
[Site "Chingis Khentii"]
[Date "2022.05.19"]
[Round "7.6"]
[White "Enkhnar, Enkhbaatar"]
[Black "Gan-Erdene, Sugar"]
[Result "1/2-1/2"]
[ECO "E63"]
[WhiteElo "2368"]
[BlackElo "2419"]
[Annotator "TA"]
[PlyCount "104"]
[EventDate "2022.05.12"]
[EventType "tourn"]
[EventCountry "MGL"]
[SourceTitle "playchess.com"]
[Source "ChessBase"]
[SourceQuality "1"]
[TimeControl "40/5400+30:1800+30"]

{[%evp 16,104,28,29,33,22,35,33,40,30,55,34,37,47,41,35,105,96,89,110,99,44,47,28,77,-13,-17,-16,-16,-13,0,0,0,0,0,0,0,0,0,-40,0,0,0,-54,0,-78,-68,-46,0,0,0,0,17,2,16,6,16,10,21,24,48,55,17,15,55,14,133,122,118,81,75,22,23,24,24,24,24,23,22,24,24,8,8,8,8,8,8,8,8,8,8]} 1. d4 {[%emt 0:00:01]} Nf6 {[%emt 0:00:08]} 2. c4 {[%emt 0:00:45]} g6 {[%emt 0:00:06]} 3. g3 {[%emt 0:00:12]} Bg7 {[%emt 0:00:18]} 4. Bg2 {[%emt 0:00:06]} O-O {[%emt 0:00:07]} 5. Nc3 {[%emt 0:00:17]} d6 {[%emt 0:00:14]} 6. Nf3 {[%emt 0:00:22]} Nc6 {[%emt 0:00:30]} 7. O-O {[%emt 0:01:09]} a6 {[%emt 0:00:25]} 8. b3 $1 {[%emt 0:01:32][%mdl 4] is currently scoring better than 8.h3.} Rb8 {[%emt 0:05:27]} 9. d5 {[%emt 0:04:09]} Na5 {[%emt 0:04:10] E63: King's Indian: Fianchetto: Panno Variation with 7...a6.} 10. Bg5 {[%emt 0:03:21]} c5 {[%emt 0:12:11]} 11. dxc6 $1 {[%emt 0:01:25]} Nxc6 {[%emt 0:00:35] White is slightly better.} 12. Rc1 {[%emt 0:01:02]} Be6 {[%emt 0:10:41]} 13. Nd5 {[%emt 0:05:30] [#]} Ne4 $146 {[%emt 0:22:54]} ({Predecessor:} 13... Bxd5 14. cxd5 Nb4 15. Bxf6 Bxf6 16. a3 Na2 17. Rc2 Nc3 18. Qd3 Qa5 19. Nd2 Rbc8 {½-½ (46) Borhy,M (2371)-Mendonca,L (2499) Budapest 2020}) 14. Be3 {[%emt 0:04:25]} Qa5 {[%emt 0:09:26]} 15. a4 {[%emt 0:19:51] Threatens to win with Bb6.} Nc3 {[%emt 0:05:03] [#]} (15... Bxd5 $14 16. cxd5 (16. Qxd5 Nc3 $11) 16... Nb4) 16. Rxc3 $1 $16 {[%emt 0:03:34][%mdl 512]} Bxd5 {[%emt 0:00:53] [#]} (16... Bxc3 $2 17. Bb6 $18) 17. cxd5 {[%emt 0:00:43]} Qxc3 {[%emt 0:00:29]} 18. dxc6 {[%emt 0:15:07]} (18. Bd2 $16 Qb2 19. dxc6 bxc6 20. Bg5) 18... bxc6 $14 {[%emt 0:00:06]} 19. Bd4 {[%emt 0:04:22] A strong pair of Bishops.} Qxb3 {[%emt 0:09:25] [#]} (19... Bxd4 $11 20. Qxd4 (20. Nxd4 d5 $11) 20... Qxd4 21. Nxd4 c5) 20. Qxb3 {[%emt 0:00:33]} ({White should play} 20. Qa1 $1 $16 e5 21. Bc3) 20... Rxb3 $11 {[%emt 0:00:05]} 21. Bxg7 $1 {[%emt 0:00:05]} Kxg7 {[%emt 0:00:04]} 22. Nd4 {[%emt 0:00:05][%csl LRb3,LRc6]} Ra3 {[%emt 0:00:31] And now ...c5 would win.} 23. Nxc6 {[%emt 0:00:44]} e6 {[%emt 0:00:13]} 24. a5 {[%emt 0:01:17]} Rc8 {[%emt 0:00:17]} 25. Rb1 {[%emt 0:06:53]} d5 {[%emt 0:03:02]} 26. Rb6 {[%emt 0:01:29]} Rc3 {[%emt 0:02:36]} 27. Nd4 {[%emt 0:01:06]} Ra3 {[%emt 0:06:43][%mdl 1024] Black has compensation.} 28. Nc6 {[%emt 0:03:55]} ({Don't go for} 28. Rxa6 $2 Ra1+ 29. Bf1 Rcc1 $19) 28... Rc3 {[%emt 0:00:12]} 29. Nd4 {[%emt 0:01:35]} Ra3 {[%emt 0:00:15]} (29... Rc1+ $15 30. Bf1 e5) 30. Bh3 {[%emt 0:03:03]} ({Don't blunder} 30. Rxa6 $2 Ra1+ 31. Bf1 Rcc1 $19) (30. Nc6 $11) 30... Rxa5 {[%emt 0:01:27]} 31. Rb7 {[%emt 0:00:09]} Kg8 {[%emt 0:04:47]} (31... Kf8 $15) 32. f4 {[%emt 0:01:47]} Ra4 {[%emt 0:00:54]} 33. Nf3 {[%emt 0:00:28]} Re4 {[%emt 0:02:06]} 34. Bf1 {[%emt 0:01:04] Black should prevent Ne5.} f6 {[%emt 0:00:32] Prevents Ne5.} 35. Ra7 {[%emt 0:00:39]} Rc6 {[%emt 0:00:14]} 36. Kf2 {[%emt 0:00:45]} Ra4 {[%emt 0:00:24]} 37. Bh3 {[%emt 0:03:00]} Re4 {[%emt 0:00:33]} 38. Ne1 {[%emt 0:01:17]} Rb4 {[%emt 0:00:32]} 39. Nd3 {[%emt 0:00:57]} Rbb6 {[%emt 0:00:12]} 40. g4 {[%emt 0:00:00]} h6 {[%emt 0:00:00] Inhibits g5.} (40... a5 $1 $11 {keeps the balance.}) 41. Bg2 $16 {[%emt 0:01:54][%cal Of4f5]} Rd6 {[%emt 0:12:50]} 42. Nc5 {[%emt 0:03:12] Black must now prevent Nd7.} Rb4 {[%emt 0:10:21]} 43. Nxe6 {[%emt 0:03:48] White is more active.} Rxe6 $11 {[%emt 0:00:45]} 44. Bxd5 {[%emt 0:00:10]} Rxf4+ $16 {[%emt 0:00:04][%mdl 4096] Endgame KRR-KRB} 45. Kg3 {[%emt 0:00:43]} Rfe4 {[%emt 0:00:06]} 46. Re7 {[%emt 0:01:48][%mdl 64] Pin} Re3+ {[%emt 0:01:31]} 47. Kh4 {[%emt 0:01:35]} Rxe2 {[%emt 0:00:34]} 48. Rxe6 {[%emt 0:15:47]} Rxe6 {[%emt 0:00:18] The position is equal.} 49. Bxe6+ {[%emt 0:00:02]} Kg7 {[%emt 0:00:22]} 50. Bc4 {[%emt 0:02:08]} a5 {[%emt 0:02:35]} 51. Bb3 {[%emt 0:00:10]} f5 {[%emt 0:01:46]} 52. g5 {[%emt 0:00:07]} f4 {[%emt 0:00:30] Weighted Error Value: White=0.12 (very precise) /Black=0.13 (very precise)} 1/2-1/2